bitfinex/quotes_BTCUSD_20241208
["timestamp","ask_amount","ask_price","bid_price","bid_amount"]
[1733620617563,0.00779259,100120.0,100110.0,0.21269148]
[1733620619641,0.00779259,100120.0,100110.0,0.30175645]
[1733620620538,0.00779259,100120.0,100110.0,0.4353539]
[1733620620742,0.00779259,100120.0,100110.0,0.43617095]
[1733620621153,0.00779259,100120.0,100110.0,0.76614271]
[1733620621600,0.00779259,100120.0,100110.0,0.94492317]
[1733620623147,0.00779259,100120.0,100110.0,1.16839875]
[1733620627297,0.00779259,100120.0,100110.0,1.16839874]
[1733620627937,0.3264541,100120.0,100110.0,0.95680313]
[1733620628156,0.3264541,100120.0,100110.0,0.73332755]
[1733620629008,0.3264541,100120.0,100110.0,0.55454709]
[1733620629212,0.3264541,100120.0,100110.0,0.00109586]
[1733620629821,0.3264541,100120.0,100110.0,0.09048609]
[1733620630033,0.00779259,100120.0,100110.0,0.3020817]
[1733620630464,0.00779259,100120.0,100110.0,0.43616704]
[1733620632241,0.00779259,100120.0,100110.0,0.3020817]
[1733620633016,0.00779259,100120.0,100110.0,0.76623581]
[1733620633445,0.00779259,100120.0,100110.0,0.94501627]
[1733620634679,0.00779259,100120.0,100110.0,0.956535]
[1733620636260,0.00779259,100120.0,100110.0,1.18001058]
[1733620636890,0.00779259,100120.0,100110.0,1.09062035]
[1733620637148,0.00779259,100120.0,100110.0,1.18001912]
[1733620637559,0.00779259,100120.0,100110.0,1.18001777]
[1733620637776,0.00779259,100120.0,100110.0,1.09062035]
[1733620638201,0.00779259,100120.0,100110.0,1.18001769]
[1733620640838,0.00779259,100120.0,100110.0,1.28511769]
[1733620641052,0.00779259,100120.0,100110.0,1.18001769]
[1733620641254,0.00479259,100120.0,100110.0,1.18001769]
[1733620641482,0.00179259,100120.0,100110.0,1.18001769]
[1733620641689,0.00479259,100120.0,100110.0,1.18001769]
[1733620641907,0.00479259,100120.0,100110.0,0.95654211]
[1733620642127,0.00479259,100120.0,100110.0,0.9077925]
[1733620642351,0.07979259,100120.0,100110.0,0.9087925]
[1733620642560,0.08079259,100120.0,100110.0,0.9087925]
[1733620642767,0.22062459,100120.0,100110.0,1.13226808]
[1733620643005,0.22062459,100120.0,100110.0,0.9087925]
[1733620643229,0.08079259,100120.0,100110.0,0.9087925]
[1733620643409,0.08079259,100120.0,100110.0,1.13226808]
[1733620643653,0.08079259,100120.0,100110.0,0.95754211]
[1733620645603,0.08079259,100120.0,100110.0,0.96499616]
[1733620646238,0.08079259,100120.0,100110.0,0.94199616]
[1733620646239,0.00279259,100120.0,100110.0,0.94199616]
[1733620646450,0.00279259,100120.0,100110.0,1.16547174]
[1733620647538,0.00279259,100120.0,100110.0,1.18847255]
[1733620647766,0.00279259,100120.0,100110.0,1.09907521]
[1733620648011,0.00279259,100120.0,100110.0,1.0990744]
[1733620651082,0.00279259,100120.0,100110.0,1.09907413]
[1733620653062,0.00279259,100120.0,100110.0,1.18851682]
[1733620653309,0.00279259,100120.0,100110.0,1.09907413]
[1733620654165,0.00279259,100120.0,100110.0,1.09850511]
[1733620655922,0.00279259,100120.0,100110.0,1.18795004]
[1733620656207,0.22322459,100120.0,100110.0,0.622848]
[1733620656812,0.22322459,100120.0,100110.0,0.57409839]
[1733620657019,0.22322459,100120.0,100110.0,0.622848]
[1733620657285,0.22322459,100120.0,100110.0,0.24402962]
[1733620657494,0.22322459,100120.0,100110.0,0.29278093]
[1733620657713,0.22322459,100120.0,100110.0,0.15869559]
[1733620657938,0.22322459,100120.0,100110.0,0.15124011]
[1733620658151,0.22322459,100120.0,100110.0,0.15869583]
[1733620658381,0.40068569,100120.0,100110.0,0.10994622]
[1733620658597,0.40068569,100120.0,100110.0,0.01304557]
[1733620659035,0.3703541,100120.0,100110.0,0.01304557]
[1733620659510,0.46018834,100120.0,100110.0,0.01304557]
[1733620659934,0.61018834,100120.0,100110.0,0.01304557]
[1733620660162,0.7449397,100120.0,100110.0,0.01304557]
[1733620660578,0.61018834,100120.0,100110.0,0.01304557]
[1733620660784,0.7449397,100120.0,100110.0,0.01304557]
[1733620661449,0.61018834,100120.0,100110.0,0.01304557]
[1733620662782,0.67981126,100120.0,100110.0,0.01304557]
[1733620663440,0.58997702,100120.0,100110.0,0.01304557]
[1733620664108,0.5193541,100120.0,100110.0,0.01304557]
[1733620664307,0.5193541,100120.0,100110.0,0.01204557]
[1733620664308,0.60918834,100120.0,100110.0,0.01204557]
[1733620664536,0.5323541,100120.0,100110.0,0.01204557]
[1733620664747,0.62218834,100120.0,100110.0,0.01204557]
[1733620664978,0.62343873,100120.0,100110.0,0.01204557]
[1733620665214,0.75819009,100120.0,100110.0,0.01204557]
[1733620665476,0.85800543,100120.0,100110.0,0.01204557]
[1733620665878,0.85300543,100120.0,100110.0,0.01204557]
[1733620666091,1.08767391,100120.0,100110.0,0.01204557]
[1733620666512,0.77325407,100120.0,100110.0,0.01204557]
[1733620666717,0.90800543,100120.0,100110.0,0.01204557]
[1733620666928,1.08767391,100120.0,100110.0,0.01204557]
[1733620667126,0.90800543,100120.0,100110.0,0.01204557]
[1733620667539,1.08767391,100120.0,100110.0,0.01204557]
[1733620667749,1.31225951,100120.0,100110.0,0.01204557]
[1733620667950,1.85805951,100120.0,100110.0,0.01204557]
[1733620668737,1.63347391,100120.0,100110.0,0.01204557]
[1733620668956,1.53365857,100120.0,100110.0,0.01204557]
[1733620669315,1.35399009,100120.0,100110.0,0.01204557]
[1733620669716,1.21923873,100120.0,100110.0,0.01204557]
[1733620670360,1.35399009,100120.0,100110.0,0.01204557]
[1733620670528,1.21923873,100120.0,100110.0,0.01204557]
[1733620671146,1.21798834,100120.0,100110.0,0.01204557]
[1733620671580,1.1281541,100120.0,100110.0,0.01204557]
[1733620672211,1.0310541,100120.0,100110.0,0.01204557]
[1733620672420,0.3352541,100120.0,100110.0,0.01204557]
[1733620674022,0.2546541,100120.0,100110.0,0.01204557]
[1733620676707,0.15462459,100120.0,100110.0,0.10609518]
[1733620676958,0.01479259,100120.0,100110.0,0.24693998]
[1733620677183,0.01479259,100120.0,100110.0,0.32744118]
[1733620677871,0.00679259,100120.0,100110.0,0.32744118]
[1733620678092,0.00179259,100120.0,100110.0,0.32744118]
[1733620678308,0.01479259,100120.0,100110.0,0.32744118]
[1733620678922,0.00979259,100120.0,100110.0,0.32744118]
[1733620679150,0.01279259,100120.0,100110.0,0.32744118]
[1733620679379,0.00479259,100120.0,100110.0,0.35044118]
[1733620679799,0.00779259,100120.0,100110.0,0.35044118]
[1733620680917,0.00479259,100120.0,100110.0,0.35044118]
[1733620681142,0.00179259,100120.0,100110.0,0.35044118]
[1733620681353,0.00279259,100120.0,100110.0,0.35144118]
[1733620687412,0.00279259,100120.0,100110.0,0.32844118]
[1733620700578,0.00279259,100120.0,100110.0,0.24694118]
[1733620708153,0.00279259,100120.0,100110.0,0.51854673]
[1733620708385,0.00279259,100120.0,100110.0,0.9814579]
[1733620708619,0.00279259,100120.0,100110.0,1.15968133]
[1733620709351,0.00279259,100120.0,100110.0,1.15868133]
[1733620709566,0.00279259,100120.0,100110.0,1.16268133]
[1733620709991,0.00279259,100120.0,100110.0,1.16368133]
[1733620713504,0.00279259,100120.0,100110.0,1.06365182]
[1733620713727,0.00279259,100120.0,100110.0,0.93595182]
[1733620713950,0.00279259,100120.0,100110.0,0.7576404]
[1733620714397,0.00279259,100120.0,100110.0,0.42853045]
[1733620715062,0.00279259,100120.0,100110.0,0.29479689]
[1733620715507,0.00279259,100120.0,100110.0,0.75807253]
[1733620716566,0.00279259,100120.0,100110.0,0.93638395]
[1733620718299,0.00279259,100120.0,100110.0,0.75807253]
[1733620719085,0.14262459,100120.0,100110.0,0.56947692]
[1733620719310,0.22332459,100120.0,100110.0,0.61822653]
[1733620719544,0.22332459,100120.0,100110.0,0.61859716]
[1733620719991,0.22332459,100120.0,100110.0,0.28868445]
[1733620720194,0.08349259,100120.0,100110.0,0.28868445]
[1733620720411,0.08349259,100120.0,100110.0,0.29479689]
[1733620720635,0.08349259,100120.0,100110.0,0.9368141]
[1733620720837,0.08349259,100120.0,100110.0,0.7969681]
[1733620720838,0.22332459,100120.0,100110.0,0.7969681]
[1733620723881,0.22332459,100120.0,100110.0,0.7959681]
[1733620724090,0.22232459,100120.0,100110.0,0.61365668]
[1733620724238,0.22632459,100120.0,100110.0,0.7919681]
[1733620725056,0.22932459,100120.0,100110.0,0.7919681]
[1733620725258,0.22932459,100120.0,100110.0,0.10120128]
[1733620725259,0.3293541,100120.0,100110.0,0.10120128]
[1733620725468,0.44976552,100120.0,100110.0,0.01204557]
[1733620725679,0.44576552,100120.0,100110.0,0.01204557]
[1733620725899,0.3723541,100120.0,100110.0,0.01204557]
[1733620726100,0.59732496,100120.0,100110.0,0.01204557]
[1733620726308,0.46294244,100120.0,100110.0,0.01204557]
[1733620726540,0.46594244,100120.0,100110.0,0.01204557]
[1733620727203,0.3763541,100120.0,100110.0,0.01204557]
[1733620727456,0.41062083,100120.0,100110.0,0.01204557]
[1733620729259,0.3763541,100120.0,100110.0,0.01204557]
[1733620729958,0.46594244,100120.0,100110.0,0.01204557]
[1733620731453,0.3763541,100120.0,100110.0,0.01204557]
[1733620740958,0.3815029,100120.0,100110.0,0.01204557]
[1733620741381,0.3763541,100120.0,100110.0,0.01204557]
[1733620754796,0.45108953,100120.0,100110.0,0.01204557]
[1733620755019,0.54073548,100120.0,100110.0,0.01204557]
[1733620755711,0.6752044,100120.0,100110.0,0.01204557]
[1733620755924,0.8504963,100120.0,100110.0,0.01204557]
[1733620756134,0.89924591,100120.0,100110.0,0.01204557]
[1733620756369,1.12936079,100120.0,100110.0,0.01304557]
[1733620756487,1.04771484,100120.0,100110.0,0.01304557]
[1733620757118,1.04896523,100120.0,100110.0,0.01304557]
[1733620757324,1.06511465,100120.0,100110.0,0.01304557]
[1733620757549,0.84099977,100120.0,100110.0,0.01304557]
[1733620758848,0.99099977,100120.0,100110.0,0.01304557]
[1733620759070,1.21511465,100120.0,100110.0,0.01304557]
[1733620759502,1.76091465,100120.0,100110.0,0.01304557]
[1733620759946,1.53554938,100120.0,100110.0,0.01304557]
[1733620760178,1.35625748,100120.0,100110.0,0.01304557]
[1733620760591,1.43854938,100120.0,100110.0,0.01304557]
[1733620761275,1.25925748,100120.0,100110.0,0.01304557]
[1733620761965,1.17478856,100120.0,100110.0,0.01304557]
[1733620762177,1.12478856,100120.0,100110.0,0.01304557]
[1733620762589,0.57898856,100120.0,100110.0,0.01304557]
[1733620763248,0.71345748,100120.0,100110.0,0.01304557]
[1733620764242,0.76345748,100120.0,100110.0,0.01304557]
[1733620764650,0.78325444,100120.0,100110.0,0.01304557]
[1733620766115,0.91788845,100120.0,100110.0,0.01304557]
[1733620766312,0.78341953,100120.0,100110.0,0.01304557]
[1733620767109,0.73341953,100120.0,100110.0,0.01304557]
[1733620767319,0.78341953,100120.0,100110.0,0.01304557]
[1733620767517,0.73341953,100120.0,100110.0,0.01304557]
[1733620767725,0.91283431,100120.0,100110.0,0.01304557]
[1733620768132,0.89303735,100120.0,100110.0,0.01304557]
[1733620768797,1.11749579,100120.0,100110.0,0.01304557]
[1733620769022,0.89322732,100120.0,100110.0,0.01304557]
[1733620770095,1.11760134,100120.0,100110.0,0.01304557]
[1733620771480,1.02785174,100120.0,100110.0,0.01304557]
[1733620771893,1.11765739,100120.0,100110.0,0.01304557]
[1733620773566,1.03695739,100120.0,100110.0,0.01304557]
[1733620773712,0.81258337,100120.0,100110.0,0.01304557]
[1733620774983,0.80358337,100120.0,100110.0,0.01204557]
[1733620775187,0.79558337,100120.0,100110.0,0.01204557]
[1733620775624,0.80358337,100120.0,100110.0,0.01204557]
[1733620775829,0.81258337,100120.0,100110.0,0.01204557]
[1733620776040,0.80358337,100120.0,100110.0,0.01204557]
[1733620776215,0.79558337,100120.0,100110.0,0.01204557]
[1733620776433,0.80258337,100120.0,100110.0,0.01204557]
[1733620776653,0.62308416,100120.0,100110.0,0.01204557]
[1733620776859,0.62918525,100120.0,100110.0,0.01204557]
[1733620779089,0.49446656,100120.0,100110.0,0.01204557]
[1733620779298,0.10460505,100120.0,100110.0,0.32454118]
[1733620779508,0.01479259,100120.0,100110.0,0.32454118]
[1733620780556,0.01479259,100120.0,100110.0,0.4140599]
[1733620780789,0.01479259,100120.0,100110.0,1.28130707]
[1733620781207,0.01479259,100120.0,100110.0,1.05751027]
[1733620781442,0.01479259,100120.0,100110.0,1.19154537]
[1733620781653,0.00779259,100120.0,100110.0,1.19154537]
[1733620782001,0.00479259,100120.0,100110.0,1.28090313]
[1733620782436,0.00779259,100120.0,100110.0,1.28090313]
[1733620782607,0.00779259,100120.0,100110.0,1.05710633]
[1733620782843,0.00179259,100120.0,100110.0,1.05710633]
[1733620783241,0.00279259,100120.0,100110.0,1.05710633]
[1733620783446,0.00279259,100120.0,100110.0,0.87806889]
[1733620784189,0.00279259,100120.0,100110.0,0.87906889]
[1733620784448,0.00279259,100120.0,100110.0,0.41489894]
[1733620784988,0.00279259,100120.0,100110.0,0.18569518]
[1733620785204,0.14262459,100120.0,100110.0,0.18569518]
[1733620793976,0.14262459,100120.0,100110.0,0.10929518]
[1733620794292,0.14262459,100120.0,100110.0,0.06179518]
[1733620794512,0.14262459,100120.0,100110.0,0.01304557]
[1733620794796,0.14262459,100120.0,100110.0,0.01073119]
[1733620796999,0.2426541,100120.0,100110.0,0.01073119]
[1733620797853,0.2426541,100120.0,100110.0,0.0594808]
[1733620798716,0.2426541,100120.0,100110.0,0.01073119]
[1733620802834,0.3258541,100120.0,100110.0,0.01073119]
[1733620804516,0.3258541,100120.0,100110.0,0.01159839]
[1733620804920,0.2426541,100120.0,100110.0,0.137148]
[1733620805141,0.14262459,100120.0,100110.0,0.137148]
[1733620805567,0.14262459,100120.0,100110.0,0.183148]
[1733620805792,0.00279259,100120.0,100110.0,0.322994]
[1733620806436,0.00279259,100120.0,100110.0,0.44602351]
[1733620806682,0.00279259,100120.0,100110.0,0.62996271]
[1733620806899,0.00279259,100120.0,100110.0,1.04855531]
[1733620807564,0.00279259,100120.0,100110.0,1.53124091]
[1733620807784,0.00379259,100120.0,100110.0,1.53424091]
[1733620808226,0.0027264,100140.0,100130.0,0.31846761]
[1733620808407,0.00278385,100140.0,100130.0,0.31846761]
[1733620808639,0.00278385,100140.0,100130.0,0.32959062]
[1733620808640,0.00179225,100140.0,100130.0,0.32959062]
[1733620809478,0.00479225,100140.0,100130.0,0.32959062]
[1733620809742,0.00779225,100140.0,100130.0,0.32959062]
[1733620811723,0.00779225,100140.0,100130.0,0.47962013]
[1733620811944,0.00779225,100140.0,100130.0,0.50262013]
[1733620812169,0.00779225,100140.0,100130.0,0.59176586]
[1733620812381,0.00779225,100140.0,100130.0,0.92054243]
[1733620812584,0.00179225,100140.0,100130.0,0.72548446]
[1733620812811,0.00479225,100140.0,100130.0,1.23268413]
[1733620813026,0.00779225,100140.0,100130.0,1.20968413]
[1733620813251,0.00479225,100140.0,100130.0,1.20968413]
[1733620813500,0.00479225,100140.0,100130.0,1.21068413]
[1733620813932,0.00479225,100140.0,100130.0,1.36621166]
[1733620814148,0.00479225,100140.0,100130.0,1.56621166]
[1733620814379,0.0017348,100160.0,100150.0,0.31843961]
[1733620814587,0.00179225,100160.0,100150.0,0.32952549]
[1733620815627,0.00779225,100160.0,100150.0,0.32952549]
[1733620815881,0.01579225,100160.0,100150.0,0.33052549]
[1733620820112,0.00779225,100160.0,100150.0,0.32952549]
[1733620820534,0.00179225,100160.0,100150.0,0.33052549]
[1733620820753,0.00279225,100160.0,100150.0,0.33052549]
[1733620822774,0.00279225,100160.0,100150.0,0.430555]
[1733620823638,0.00179225,100160.0,100150.0,0.430555]
[1733620823859,0.00179225,100160.0,100150.0,0.429555]
[1733620824086,0.00379225,100160.0,100150.0,0.434555]
[1733620824493,0.00279225,100160.0,100150.0,0.434555]
[1733620824762,0.00279225,100160.0,100150.0,0.435555]
[1733620831704,0.00279225,100160.0,100150.0,0.06583549]
[1733620831851,0.14256825,100160.0,100150.0,0.06583549]
[1733620833260,0.14156825,100160.0,100150.0,0.05983549]
[1733620833510,0.14156825,100160.0,100150.0,0.01108588]
[1733620833758,0.14156825,100160.0,100150.0,0.01208588]
[1733620833759,0.27726825,100160.0,100150.0,0.01208588]
[1733620834167,0.14956825,100160.0,100150.0,0.06083549]
[1733620834380,0.00979225,100160.0,100150.0,0.32232549]
[1733620834592,0.00979225,100160.0,100150.0,0.422355]
[1733620836184,0.00979225,100160.0,100150.0,0.32232549]
[1733620836386,0.00979225,100160.0,100150.0,0.24592549]
[1733620842651,0.00679225,100160.0,100150.0,0.24592549]
[1733620842847,0.00779225,100160.0,100150.0,0.24592549]
[1733620843055,0.00279225,100160.0,100150.0,0.24492549]
[1733620843386,0.00379225,100160.0,100150.0,0.24492549]
[1733620847782,0.00379225,100160.0,100150.0,0.32652549]
[1733620850464,0.00379225,100160.0,100150.0,0.4154932]
[1733620851531,0.00379225,100160.0,100150.0,0.87822056]
[1733620852472,0.00379225,100160.0,100150.0,1.05615599]
[1733620852720,0.00379225,100160.0,100150.0,1.05775402]
[1733620853469,0.00379225,100160.0,100150.0,1.28092344]
[1733620853682,0.00379225,100160.0,100150.0,1.05775402]
[1733620854111,0.00379225,100160.0,100150.0,1.28092344]
[1733620855503,0.00379225,100160.0,100150.0,1.28100023]
[1733620856091,0.00379225,100160.0,100150.0,1.19165568]
[1733620857645,0.00379225,100160.0,100150.0,1.19307005]
[1733620858419,0.00379225,100160.0,100150.0,1.05894949]
[1733620859124,0.00379225,100160.0,100150.0,1.19308356]
[1733620860259,0.00379225,100160.0,100150.0,1.06618356]
[1733620861279,0.00379225,100160.0,100150.0,1.17270215]
[1733620861397,0.00379225,100160.0,100150.0,1.06617551]
[1733620866485,0.00379225,100160.0,100150.0,1.15559042]
[1733620867323,0.22376825,100160.0,100150.0,0.79226474]
[1733620867577,0.22376825,100160.0,100150.0,0.6134362]
[1733620867814,0.22376825,100160.0,100150.0,0.2833718]
[1733620867983,0.22376825,100160.0,100150.0,0.05983549]
[1733620868744,0.00379225,100160.0,100150.0,0.19962549]
[1733620868955,0.00379225,100160.0,100150.0,0.2890404]
[1733620869152,0.00379225,100160.0,100150.0,0.75324848]
[1733620869569,0.00379225,100160.0,100150.0,0.93207702]
[1733620869794,0.00379225,100160.0,100150.0,1.03210653]
[1733620870366,0.00379225,100160.0,100150.0,1.25573082]
[1733620870598,0.00379225,100160.0,100150.0,1.16628915]
[1733620870815,0.00379225,100160.0,100150.0,1.03216907]
[1733620871021,0.00379225,100160.0,100150.0,1.1662925]
[1733620871236,0.00379225,100160.0,100150.0,1.03216907]
[1733620871453,0.00379225,100160.0,100150.0,1.16629254]
[1733620871719,0.00379225,100160.0,100150.0,1.03216907]
[1733620873106,0.00379225,100160.0,100150.0,1.11266907]
[1733620873944,0.00379225,100160.0,100150.0,0.93381967]
[1733620874179,0.00379225,100160.0,100150.0,1.11264477]
[1733620875216,0.00379225,100160.0,100150.0,1.11255625]
[1733620875923,0.00379225,100160.0,100150.0,1.12238767]
[1733620876349,0.00379225,100160.0,100150.0,1.14233485]
[1733620878001,0.00379225,100160.0,100150.0,0.96351299]
[1733620878258,0.00379225,100160.0,100150.0,1.23174578]
[1733620878672,0.00379225,100160.0,100150.0,0.96351299]
[1733620878998,0.00279225,100160.0,100150.0,0.96351299]
[1733620879484,0.00279225,100160.0,100150.0,0.94756581]
[1733620879485,0.00179225,100160.0,100150.0,0.94756581]
[1733620879851,0.00179225,100160.0,100150.0,1.12737661]
[1733620880059,0.00179225,100160.0,100150.0,0.94856581]
[1733620880274,0.00179225,100160.0,100150.0,1.12737322]
[1733620880479,0.00179225,100160.0,100150.0,0.94856581]
[1733620880912,0.00179225,100160.0,100150.0,1.12738943]
[1733620881120,0.00179225,100160.0,100150.0,1.12739515]
[1733620881330,0.00179225,100160.0,100150.0,0.94856581]
[1733620883078,0.00179225,100160.0,100150.0,0.86806581]
[1733620883496,0.00179225,100160.0,100150.0,0.86751692]
[1733620883931,0.00179225,100160.0,100150.0,1.04636973]
[1733620884817,0.00179225,100160.0,100150.0,0.86751692]
[1733620885020,0.00179225,100160.0,100150.0,1.11937896]
[1733620885247,0.00179225,100160.0,100150.0,1.24787896]
[1733620885570,0.00179225,100160.0,100150.0,1.33724971]
[1733620886058,0.00179225,100160.0,100150.0,1.11372239]
[1733620887681,0.00179225,100160.0,100150.0,1.31372239]
[1733620889121,0.00179225,100160.0,100150.0,1.3134449]
[1733620889294,0.00179225,100160.0,100150.0,1.2634449]
[1733620889556,0.00179225,100160.0,100150.0,1.2633563]
[1733620892066,0.00179225,100160.0,100150.0,1.3133563]
[1733620893153,0.00179225,100160.0,100150.0,1.2633563]
[1733620900613,0.00179225,100160.0,100150.0,1.38872258]
[1733620901041,0.00179225,100160.0,100150.0,1.3133563]
[1733620903912,0.00179225,100160.0,100150.0,1.31279886]
[1733620904115,0.00179225,100160.0,100150.0,1.21404925]
[1733620904323,0.00179225,100160.0,100150.0,1.20839886]
[1733620904952,0.00179225,100160.0,100150.0,1.16378389]
[1733620905378,0.00179225,100160.0,100150.0,1.11378389]
[1733620905593,0.00179225,100160.0,100150.0,1.35220988]
[1733620905822,0.00179225,100160.0,100150.0,1.46851393]
[1733620906065,0.00179225,100160.0,100150.0,1.41851393]
[1733620906272,0.08399225,100160.0,100150.0,1.41851393]
[1733620906712,0.08399225,100160.0,100150.0,1.19531016]
[1733620906940,0.08399225,100160.0,100150.0,1.03547874]
[1733620907150,0.08399225,100160.0,100150.0,1.03634594]
[1733620907816,0.08399225,100160.0,100150.0,1.25954971]
[1733620908020,0.08399225,100160.0,100150.0,1.03634594]
[1733620908700,0.08399225,100160.0,100150.0,1.25954971]
[1733620908897,0.08399225,100160.0,100150.0,1.17024566]
[1733620909330,0.08399225,100160.0,100150.0,1.25955601]
[1733620909800,0.08399225,100160.0,100150.0,1.17024566]
[1733620911956,0.00179225,100160.0,100150.0,1.17024566]
[1733620912162,0.00179225,100160.0,100150.0,1.24324566]
[1733620912384,0.00179225,100160.0,100150.0,1.1092983]
[1733620912646,0.00179225,100160.0,100150.0,1.2592983]
[1733620913073,0.00179225,100160.0,100150.0,1.16231967]
[1733620913716,0.00179225,100160.0,100150.0,1.43013841]
[1733620914128,0.00179225,100160.0,100150.0,1.52513841]
[1733620914349,0.00179225,100160.0,100150.0,1.30193464]
[1733620916405,0.00179225,100160.0,100150.0,1.40703464]
[1733620916877,0.0017344,100170.0,100160.0,0.09874961]
[1733620917076,0.0017344,100170.0,100160.0,0.97079331]
[1733620917303,0.0017344,100170.0,100160.0,0.9697952]
[1733620918126,0.0027344,100170.0,100160.0,0.9697952]
[1733620918555,0.0037344,100170.0,100160.0,0.9697952]
[1733620920589,0.0037344,100170.0,100160.0,1.1197952]
[1733620920816,0.0037344,100170.0,100160.0,1.1697952]
[1733620921639,0.0037344,100170.0,100160.0,1.16978611]
[1733620923327,0.0037344,100170.0,100160.0,1.17722556]
[1733620923744,0.0037344,100170.0,100160.0,1.18747592]
[1733620925324,0.0037344,100170.0,100160.0,1.2073487]
[1733620925940,0.0027344,100170.0,100160.0,1.2073487]
[1733620926347,0.0017344,100170.0,100160.0,1.20734515]
[1733620926567,0.0027344,100170.0,100160.0,1.20734515]
[1733620927018,0.0017344,100170.0,100160.0,1.20734515]
[1733620927241,0.0027344,100170.0,100160.0,1.21434515]
[1733620927446,0.0037344,100170.0,100160.0,1.21434515]
[1733620927918,0.0027344,100170.0,100160.0,1.21434515]
[1733620928130,0.0027344,100170.0,100160.0,1.21834515]
[1733620929680,0.0027344,100170.0,100160.0,1.21834294]
[1733620929881,0.0027344,100170.0,100160.0,1.21921004]
[1733620931961,0.1002402,100180.0,100170.0,0.27174961]
[1733620932183,0.1002402,100180.0,100170.0,1.05438066]
[1733620932422,0.099258,100180.0,100170.0,1.39474002]
[1733620933499,0.099258,100180.0,100170.0,1.39473867]
[1733620933906,0.099258,100180.0,100170.0,1.26488721]
[1733620934107,0.016658,100180.0,100170.0,1.26488721]
[1733620934312,0.016658,100180.0,100170.0,1.08741859]
[1733620935276,0.016658,100180.0,100170.0,1.35528843]
[1733620935509,0.016658,100180.0,100170.0,1.13220266]
[1733620936175,0.016658,100180.0,100170.0,1.13172689]
[1733620936807,0.016658,100180.0,100170.0,1.35474657]
[1733620937545,0.016658,100180.0,100170.0,1.40254657]
[1733620937754,0.016658,100180.0,100170.0,1.38709317]
[1733620938499,0.016658,100180.0,100170.0,1.78230478]
[1733620938723,0.016658,100180.0,100170.0,1.38709317]
[1733620939895,0.016658,100180.0,100170.0,1.49219317]
[1733620941209,0.016658,100180.0,100170.0,1.49306017]
[1733620942086,0.016658,100180.0,100170.0,1.41769389]
[1733620943567,0.016658,100180.0,100170.0,1.41769305]
[1733620945842,0.016658,100180.0,100170.0,1.41678039]
[1733620947003,0.0017342,100190.0,100180.0,0.46149761]
[1733620947214,0.0017342,100190.0,100180.0,1.10339274]
[1733620947430,0.0017342,100190.0,100180.0,1.44296823]
[1733620948295,0.0027342,100190.0,100180.0,1.44296823]
[1733620949147,0.0037342,100190.0,100180.0,0.80237547]
[1733620949391,0.0037342,100190.0,100180.0,1.44278287]
[1733620949839,0.0017342,100190.0,100180.0,1.44278287]
[1733620949980,0.0027342,100190.0,100180.0,1.53183638]
[1733620950179,0.0037342,100190.0,100180.0,1.53183638]
[1733620951082,0.0017342,100190.0,100180.0,1.53183638]
[1733620951460,0.0017342,100190.0,100180.0,1.53583638]
[1733620952553,0.0027342,100190.0,100180.0,1.54283638]
[1733620952689,0.0027342,100190.0,100180.0,1.55262766]
[1733620952901,0.0027342,100190.0,100180.0,1.55262988]
[1733620953103,0.0027342,100190.0,100180.0,1.552633]
[1733620953310,0.0027342,100190.0,100180.0,1.46357727]
[1733620953716,0.0027342,100190.0,100180.0,1.41357727]
[1733620954925,0.0027342,100190.0,100180.0,1.41357842]
[1733620956033,0.0027342,100190.0,100180.0,1.42243218]
[1733620956254,0.0027342,100190.0,100180.0,1.28884657]
[1733620957104,0.0027342,100190.0,100180.0,1.2360987]
[1733620957329,0.0027342,100190.0,100180.0,1.20526096]
[1733620959457,0.0027342,100190.0,100180.0,1.46262724]
[1733620959691,0.0027342,100190.0,100180.0,1.48069352]
[1733620959923,0.0027342,100190.0,100180.0,1.53265103]
[1733620960397,0.0818577,100210.0,100200.0,0.11096801]
[1733620960619,0.0018577,100210.0,100200.0,0.98281628]
[1733620960861,0.0008669,100210.0,100200.0,1.23219095]
[1733620961098,0.0008669,100210.0,100200.0,1.43219095]
[1733620961320,0.0008669,100210.0,100200.0,1.43216439]
[1733620961548,0.00103905,100210.0,100200.0,1.2985484]
[1733620961787,0.00103905,100210.0,100200.0,1.16490586]
[1733620962025,0.0817846,100220.0,100210.0,0.22767401]
[1733620962289,0.0817846,100220.0,100210.0,0.98158879]
[1733620962536,0.0817846,100220.0,100210.0,1.22127042]
[1733620962760,0.0817846,100220.0,100210.0,1.0876741]
[1733620963229,0.0897846,100220.0,100210.0,1.22122639]
[1733620963467,0.0847846,100220.0,100210.0,1.22449476]
[1733620963698,0.0857846,100220.0,100210.0,1.23191864]
[1733620963915,0.0827846,100220.0,100210.0,1.23191864]
[1733620964181,0.0827846,100220.0,100210.0,1.3209445]
[1733620965063,0.0817846,100220.0,100210.0,1.09928396]
[1733620965287,0.0817846,100220.0,100210.0,1.78388047]
[1733620965506,0.0817846,100220.0,100210.0,1.32446299]
[1733620966687,0.0817846,100220.0,100210.0,0.59532977]
[1733620966909,0.0817846,100220.0,100210.0,0.92382454]
[1733620967122,0.0817846,100220.0,100210.0,0.93376969]
[1733620967322,0.0817846,100220.0,100210.0,1.11179363]
[1733620967798,0.0817846,100220.0,100210.0,0.93376969]
[1733620968022,0.0817846,100220.0,100210.0,1.13168813]
[1733620968213,0.0817846,100220.0,100210.0,0.95366419]
[1733620968869,0.0817846,100220.0,100210.0,1.13168813]
[1733620969316,0.0817846,100220.0,100210.0,0.85082454]
[1733620969545,0.1300846,100220.0,100210.0,0.29982291]
[1733620969770,0.2697766,100220.0,100210.0,0.29239903]
[1733620970039,0.1300846,100220.0,100210.0,0.29239903]
[1733620976278,0.1300846,100220.0,100210.0,0.29326573]
[1733620977713,0.0017846,100220.0,100210.0,0.34326573]
[1733620977951,0.0017846,100220.0,100210.0,0.43225463]
[1733620978437,0.0017846,100220.0,100210.0,0.56577259]
[1733620978657,0.0017846,100220.0,100210.0,0.43225463]
[1733620979366,0.0017846,100220.0,100210.0,0.56577259]
[1733620979603,0.0017846,100220.0,100210.0,0.8946096]
[1733620980724,0.0789846,100220.0,100210.0,0.8946096]
[1733620981653,0.0789846,100220.0,100210.0,0.43231559]
[1733620981892,0.0789846,100220.0,100210.0,0.38231559]
[1733620982137,0.0789846,100220.0,100210.0,0.29326573]
[1733620982390,0.0789846,100220.0,100210.0,0.25529772]
[1733620982610,0.0789846,100220.0,100210.0,0.34326573]
[1733620983070,0.0789846,100220.0,100210.0,0.43231559]
[1733620983278,0.0789846,100220.0,100210.0,0.56589038]
[1733620983751,0.0789846,100220.0,100210.0,0.43231559]
[1733620984652,0.0789846,100220.0,100210.0,0.89474445]
[1733620984875,0.0789846,100220.0,100210.0,0.56589038]
[1733620985548,0.0789846,100220.0,100210.0,0.51589038]
[1733620985726,0.0789846,100220.0,100210.0,0.43231559]
[1733620986388,0.0789846,100220.0,100210.0,0.34434758]
[1733620986625,0.2186766,100220.0,100210.0,0.15355973]
[1733620986852,0.2667766,100220.0,100210.0,0.05353022]
[1733620988123,0.2667766,100220.0,100210.0,0.05053022]
[1733620988275,0.2667766,100220.0,100210.0,0.04953022]
[1733620988476,0.2677766,100220.0,100210.0,0.04953022]